bitfinex/quotes_ETHUSD_20250518
["timestamp","ask_amount","ask_price","bid_price","bid_amount"]
[1747603160387,5.30136463,2410.7,2410.6,0.31348982]
[1747603164271,9.44887362,2411.1,2410.6,4.46177587]
[1747603165464,9.44887362,2411.1,2410.7,4.46164958]
[1747603165670,5.30136463,2411.1,2410.7,0.35496754]
[1747603165868,5.30136463,2411.1,2410.7,2.33317201]
[1747603166093,5.30136463,2411.1,2410.7,6.48129719]
[1747603166293,12.47190005,2411.3,2410.8,5.01133804]
[1747603166474,12.47194669,2411.3,2410.9,17.912]
[1747603166667,4.14732016,2411.2,2411.0,8.664]
[1747603166868,4.14748455,2411.1,2411.0,8.664]
[1747603167197,4.14735656,2411.2,2411.0,8.97748982]
[1747603167359,0.32473088,2411.3,2411.0,12.5534388]
[1747603167559,0.32473088,2411.3,2411.1,4.14740448]
[1747603167754,0.32473088,2411.3,2411.2,0.55]
[1747603167988,0.32473088,2411.3,2411.2,0.86348982]
[1747603168181,0.32473088,2411.3,2411.2,5.01080236]
[1747603168397,0.32473088,2411.3,2411.2,7.15063881]
[1747603168901,0.32473088,2411.3,2411.2,16.08063881]
[1747603169396,2.58137292,2412.0,2411.5,4.14670764]
[1747603169397,4.14595866,2412.0,2411.5,4.14670764]
[1747603169579,2.58137292,2412.2,2411.4,0.55]
[1747603169898,6.72706111,2412.2,2411.5,0.31348982]
[1747603170107,4.14640142,2411.8,2411.6,8.647]
[1747603170306,4.14620276,2411.9,2411.7,8.647]
[1747603170514,3.39367292,2412.0,2411.5,0.31348982]
[1747603170807,4.14602899,2412.0,2411.6,8.647]
[1747603171123,0.8123,2412.7,2411.8,1.3485]
[1747603171284,1.64906577,2413.0,2412.3,0.55]
[1747603171617,1.64906577,2413.0,2412.4,17.293]
[1747603171911,4.14439056,2412.9,2412.4,17.293]
[1747603172070,4.14442003,2412.9,2412.5,3.49233253]
[1747603172269,4.14439216,2412.9,2412.6,0.55]
[1747603172505,4.1444343,2412.9,2412.5,2.94233253]
[1747603172811,1.64906577,2413.0,2412.6,8.645]
[1747603172967,5.7933866,2413.0,2412.6,8.645]
[1747603173170,13.79336612,2413.0,2412.6,8.645]
[1747603173374,1.64906577,2413.0,2412.7,0.55]
[1747603173583,1.64906577,2413.0,2412.7,4.69462933]
[1747603173882,1.64906577,2413.0,2412.8,2.13246293]
[1747603174083,1.64906577,2413.0,2412.9,0.55]
[1747603174283,1.64906577,2413.0,2412.9,5.51219056]
[1747603174484,1.64906577,2413.0,2412.9,1.3678]
[1747603174689,1.64906577,2413.0,2412.9,18.6558]
[1747603174883,1.64906577,2413.0,2412.9,20.52138]
[1747603175085,4.14396807,2413.2,2412.9,20.52138]
[1747603175296,0.7572,2413.6,2413.0,8.643]
[1747603175606,4.1439686,2413.2,2413.0,8.643]
[1747603175785,4.14336026,2413.5,2413.0,8.643]
[1747603175984,4.14353194,2413.4,2413.1,19.034638]
[1747603177077,4.14387535,2413.2,2413.1,19.034638]
[1747603177400,4.14342444,2413.5,2413.1,26.545]
[1747603177695,0.7572,2413.6,2413.1,26.545]
[1747603177696,4.14370364,2413.3,2413.2,8.643]
[1747603177900,4.14387535,2413.2,2413.1,17.902]
[1747603178104,4.14387535,2413.2,2413.1,26.545]
[1747603178404,4.14371099,2413.3,2413.1,26.545]
[1747603178585,4.14387535,2413.2,2413.1,27.85805605]
[1747603178898,13.54043691,2413.6,2413.1,27.85805605]
[1747603179104,4.14367323,2413.4,2413.1,27.85805605]
[1747603179310,4.14376829,2413.3,2413.1,27.85805605]
[1747603179473,4.14327191,2413.6,2413.2,3.5687056]
[1747603179672,4.14272834,2413.9,2413.2,7.71257394]
[1747603179878,4.14272834,2413.9,2413.3,0.04142912]
[1747603180104,4.14303966,2413.7,2413.2,7.71257394]
[1747603180310,0.7678,2414.1,2413.2,3.5687056]
[1747603180514,4.14262186,2414.0,2413.3,12.24049442]
[1747603180700,4.14300153,2413.8,2413.3,12.199063]
[1747603180899,4.14300153,2413.8,2413.3,16.34274484]
[1747603181220,4.14300153,2413.8,2413.3,12.199063]
[1747603181389,4.14300153,2413.8,2413.4,1.2981963]
[1747603181571,4.14250207,2414.0,2413.5,8.641]
[1747603181774,4.14318859,2413.6,2413.5,8.641]
[1747603182496,4.14335912,2413.6,2413.2,0.7829]
[1747603182696,4.14335912,2413.6,2413.5,8.641]
[1747603182895,9.4258,2413.7,2413.1,17.902]
[1747603183107,4.14387535,2413.2,2413.1,17.902]
[1747603183317,4.14387535,2413.2,2413.1,26.543]
[1747603183507,4.14384119,2413.3,2413.1,26.543]
[1747603183714,4.14387535,2413.2,2413.1,26.543]
[1747603184119,12.90827535,2413.2,2413.1,26.543]
[1747603184487,4.90827535,2413.2,2413.1,17.902]
[1747603184786,4.90827535,2413.2,2413.1,26.542]
[1747603189291,4.90827535,2413.2,2413.1,17.902]
[1747603189493,4.90827535,2413.2,2413.1,26.542]
[1747603191524,10.20963998,2413.2,2413.1,17.902]
[1747603191727,10.20963998,2413.2,2413.1,26.542]
[1747603194027,14.06576463,2413.2,2412.4,18.712]
[1747603194252,4.14439056,2412.9,2412.8,8.64]
[1747603196707,4.14507772,2412.5,2412.4,17.896]
[1747603197004,9.44644235,2412.5,2412.4,17.896]
[1747603197215,9.44644235,2412.5,2412.4,26.536]
[1747603197820,17.44644235,2412.5,2412.4,0.69877481]
[1747603198017,12.93957772,2412.5,2412.4,0.69877481]
[1747603198219,18.24094235,2412.5,2412.4,0.69877481]
[1747603198512,18.55044395,2412.5,2412.4,0.69877481]
[1747603198840,28.66044395,2412.5,2412.4,0.69877481]
[1747603199010,33.03444395,2412.5,2412.4,0.69877481]
[1747603199210,33.03444395,2412.5,2412.3,0.48431434]
[1747603199211,16.51924954,2412.4,2412.3,0.48431434]
[1747603199411,22.18250678,2412.4,2412.3,0.48431434]
[1747603200129,17.80850678,2412.4,2412.3,0.48431434]
[1747603200329,26.43950678,2412.4,2412.3,0.48431434]
[1747603200628,4.14524954,2412.4,2412.3,0.48431434]
[1747603201033,4.14559323,2412.2,2412.1,8.632]
[1747603201413,4.14545973,2412.3,2412.1,8.632]
[1747603201610,4.14545973,2412.3,2412.1,8.94537366]
[1747603201911,4.14559323,2412.2,2412.1,8.94537366]
[1747603202815,4.14524954,2412.4,2412.1,9.3305315]
[1747603203245,4.14559323,2412.2,2412.1,9.3305315]
[1747603203627,9.44695786,2412.2,2412.1,9.3305315]
[1747603204647,9.44695786,2412.2,2412.1,0.6985315]
[1747603204852,9.44695786,2412.2,2412.1,9.3305315]
[1747603205350,9.44695786,2412.2,2412.1,8.94537366]
[1747603206344,5.30136463,2412.4,2412.2,0.7566]
[1747603206545,5.30136463,2412.4,2412.2,4.90218298]
[1747603206748,5.30136463,2412.4,2412.2,0.7566]
[1747603206947,5.30136463,2412.4,2412.3,8.632]
[1747603207134,5.30136463,2412.4,2412.2,4.90218429]
[1747603207451,5.30136463,2412.4,2412.3,8.632]
[1747603207755,5.30136463,2412.4,2412.3,8.94537366]
[1747603210121,5.30136463,2412.4,2412.3,9.32958962]
[1747603212660,4.14499794,2412.6,2412.3,9.32958962]
[1747603213022,4.14499794,2412.6,2412.4,0.31337366]
[1747603213453,4.14507772,2412.5,2412.4,0.31337366]
[1747603213656,4.14499794,2412.6,2412.4,0.31337366]
[1747603214042,4.14507772,2412.5,2412.4,0.31337366]
[1747603215166,4.14498177,2412.6,2412.4,0.31337366]
[1747603215669,1.11175515,2413.1,2412.4,1.38613116]
[1747603215826,8.0,2412.9,2412.3,8.632]
[1747603216027,4.14498775,2412.6,2412.3,8.632]
[1747603216240,4.14518107,2412.5,2412.3,8.632]
[1747603216440,4.14499326,2412.6,2412.3,8.632]
[1747603216642,4.14508698,2412.5,2412.3,11.87789545]
[1747603217063,4.14508698,2412.5,2412.3,3.24589545]
[1747603217365,4.14508698,2412.5,2412.4,8.632]
[1747603218066,4.14507772,2412.5,2412.4,8.632]
[1747603218762,0.8078,2412.7,2412.4,8.632]
[1747603218927,4.14490806,2412.6,2412.4,8.632]
[1747603219539,4.14507772,2412.5,2412.4,8.632]
[1747603220873,4.14542138,2412.3,2412.2,0.7566]
[1747603221079,4.14542138,2412.3,2412.2,8.94544918]
[1747603222784,4.14542138,2412.3,2412.2,0.31344918]
[1747603223175,4.14542138,2412.3,2412.2,8.94544918]
[1747603223885,4.14559323,2412.2,2412.1,17.899]
[1747603224067,4.14559323,2412.2,2412.1,26.531]
[1747603224387,4.14559323,2412.2,2412.1,17.899]
[1747603224552,4.14559323,2412.2,2412.1,26.531]
[1747603226480,4.14607247,2412.0,2411.9,8.633]
[1747603228400,0.7727,2412.5,2412.0,0.7864]
[1747603228554,4.14551132,2412.3,2412.0,0.7864]
[1747603228748,5.30136463,2412.4,2412.0,0.7864]
[1747603229053,5.30136463,2412.4,2412.0,4.93229157]
[1747603229467,5.30136463,2412.4,2412.0,4.93226527]
[1747603229651,5.30136463,2412.4,2412.1,2.17171496]
[1747603230686,5.30136463,2412.4,2412.2,0.38648064]
[1747603230867,5.30136463,2412.4,2412.2,0.70073466]
[1747603231386,5.30136463,2412.4,2412.3,0.31425402]
[1747603232067,5.30136463,2412.4,2412.3,0.70073466]
[1747603232268,5.30136463,2412.4,2412.3,1.78567668]
[1747603234400,5.30136463,2412.4,2412.3,19.68567668]
[1747603234988,5.30136463,2412.4,2412.3,23.83109806]
[1747603235355,5.30136463,2412.4,2412.3,24.59319806]
[1747603238193,5.30136463,2412.4,2412.3,20.44777668]
[1747603238381,5.30136463,2413.1,2412.5,0.7621]
[1747603238583,5.30136463,2413.0,2412.6,4.1448265]
[1747603238771,5.30136463,2413.0,2412.7,0.49069265]
[1747603238972,5.30136463,2413.0,2412.8,8.618]
[1747603239184,5.30136463,2413.0,2412.9,0.31425402]
[1747603240706,5.30136463,2413.0,2412.9,8.93225402]
[1747603241329,5.30136463,2413.6,2412.9,9.74425402]
[1747603241502,5.30136463,2413.5,2413.0,4.14411715]
[1747603241704,4.14371339,2413.3,2412.9,9.74425402]
[1747603242153,4.14371339,2413.3,2413.0,0.31425402]
[1747603242443,4.14404707,2413.1,2413.0,0.31425402]
[1747603242647,4.14404707,2413.1,2413.0,8.93225402]
[1747603242648,5.30136463,2413.1,2413.0,8.93225402]
[1747603243347,5.30136463,2413.1,2413.0,8.618]
[1747603244220,4.14242601,2414.1,2413.2,0.7939]
[1747603244541,4.14233988,2414.1,2413.6,4.14302694]
[1747603244752,4.14251298,2414.0,2413.7,8.617]
[1747603244940,4.14240307,2414.1,2413.7,8.617]
[1747603245847,0.7596,2414.4,2413.7,8.617]
[1747603246060,4.14243991,2414.1,2413.7,8.617]
[1747603246219,4.14243991,2414.1,2413.7,9.97240641]
[1747603246854,4.14224012,2414.2,2413.7,9.97240641]
[1747603247635,4.14224012,2414.2,2413.7,14.11540188]
[1747603247831,4.14201921,2414.3,2413.8,4.93666779]
[1747603247832,4.14208867,2414.3,2413.8,4.93666779]
[1747603248151,4.14185123,2414.4,2413.9,4.14262173]
[1747603248360,4.14185123,2414.4,2413.9,5.63352915]
[1747603248522,4.142003,2414.3,2413.9,1.49090742]
[1747603249460,4.14190403,2414.4,2413.9,5.63355071]
[1747603249660,4.1419928,2414.3,2413.9,1.49090742]
[1747603249961,4.14170315,2414.5,2414.0,0.64275638]
[1747603250255,4.14200463,2414.3,2413.9,1.49090742]
[1747603250461,9.4433443,2414.4,2413.9,5.63357974]
[1747603250660,4.14198732,2414.3,2413.4,4.69352072]
[1747603250830,4.14236431,2414.1,2413.6,4.93692652]
[1747603251233,3.58599351,2414.2,2413.6,4.93692652]
[1747603251557,4.14241338,2414.1,2413.6,4.93692652]
[1747603251759,4.1425122,2414.0,2413.6,2.61844176]
[1747603251940,3.58599351,2414.2,2413.6,2.61844176]
[1747603252141,4.14247134,2414.1,2413.6,6.76159909]
[1747603252671,4.14254959,2414.0,2413.6,2.61844176]
[1747603252860,4.14245581,2414.1,2413.6,6.76160802]
[1747603253062,4.14245581,2414.1,2413.7,1.5376608]
[1747603253447,4.14223593,2414.2,2413.8,0.7939]
[1747603253737,4.1423762,2414.1,2413.8,0.7939]
[1747603253945,8.0,2414.4,2413.8,0.7939]
[1747603254146,4.14242737,2414.1,2413.8,0.7939]
[1747603254375,4.14251997,2414.0,2413.8,0.7939]
[1747603254579,10.20222263,2414.2,2413.8,0.7939]
[1747603255075,4.14242363,2414.1,2413.8,0.7939]
[1747603255971,4.142527,2414.0,2413.8,0.7939]
[1747603256381,4.14240561,2414.1,2413.8,0.7939]
[1747603256689,4.14251009,2414.0,2413.8,0.7939]
[1747603256843,0.7522,2413.0,2412.8,0.64091078]
[1747603257048,17.37306295,2412.9,2412.8,0.64091078]
[1747603257267,12.78139056,2412.9,2412.8,0.64091078]
[1747603257871,12.77939056,2412.9,2412.8,0.64091078]
[1747603258095,4.14439056,2412.9,2412.8,0.64091078]
[1747603258255,4.14439056,2412.9,2412.8,9.25491078]
[1747603258942,4.14439056,2412.9,2412.8,0.64091078]
[1747603259953,4.14507772,2412.5,2412.4,8.614]
[1747603260876,8.646,2412.9,2412.4,9.4754]
[1747603261082,4.14503704,2412.6,2412.4,9.4754]
[1747603261279,4.14483528,2412.7,2412.4,9.4754]
[1747603261495,4.14501919,2412.6,2412.4,9.4754]
[1747603261986,4.14478834,2412.7,2412.4,9.4754]
[1747603262282,4.14502017,2412.6,2412.5,0.94754]
[1747603262481,4.14507772,2412.5,2412.4,8.614]
[1747603262653,4.14488473,2412.7,2412.4,8.614]
[1747603262853,4.14499911,2412.6,2412.4,8.614]
[1747603263279,4.14507772,2412.5,2412.4,8.614]
[1747603264384,4.1449727,2412.6,2412.4,8.614]
[1747603264795,4.14507772,2412.5,2412.4,8.614]
[1747603265608,4.14499035,2412.6,2412.4,8.614]
[1747603265901,4.14497754,2412.6,2412.4,8.614]
[1747603269576,4.14507772,2412.5,2412.4,8.614]
[1747603269796,4.14497344,2412.6,2412.4,8.614]
[1747603270002,4.14476326,2412.7,2412.4,8.614]
[1747603270486,4.14499398,2412.6,2412.4,8.614]
[1747603270698,4.14507772,2412.5,2412.4,8.614]
[1747603272609,4.14507772,2412.5,2412.0,17.89]
[1747603272907,4.14559323,2412.2,2412.1,8.646]
[1747603273280,9.01175193,2412.2,2411.6,4.14]
[1747603273481,4.14628078,2411.8,2411.7,8.646]
[1747603273681,12.74628078,2411.8,2411.7,8.646]
[1747603273878,4.1464527,2411.7,2411.6,4.14]
[1747603274227,4.14662464,2411.6,2411.5,0.48201131]
[1747603274411,4.90912464,2411.6,2411.5,0.48201131]
[1747603274780,9.77528334,2411.6,2411.5,0.48201131]
[1747603275216,17.77528334,2411.6,2411.5,0.48201131]
[1747603275596,18.0819258,2411.6,2411.5,0.48201131]
[1747603275799,4.14696856,2411.4,2410.7,1.286295]
[1747603275999,17.01415936,2410.8,2410.7,1.286295]
[1747603276199,31.68215936,2410.8,2410.7,1.286295]
[1747603276512,4.1485169,2410.5,2409.9,12.787]
[1747603276680,10.9261587,2410.8,2409.9,14.48068303]
[1747603276878,4.14838205,2410.6,2410.1,0.7962]
[1747603277279,18.8121263,2410.8,2409.9,14.48068303]
[1747603277280,10.9261587,2410.5,2409.9,4.14]
[1747603277515,4.14923321,2410.1,2409.9,4.14]
[1747603277683,4.14900475,2410.3,2409.9,4.14]
[1747603278011,4.14900475,2410.3,2410.0,8.649]
[1747603278213,4.1487176,2410.4,2410.0,10.42249201]
[1747603278404,18.86256654,2410.5,2410.0,10.42249201]
[1747603278719,4.14837857,2410.6,2410.0,10.42249201]
[1747603279010,4.9310123,2410.8,2410.0,14.5717426]
[1747603279011,4.93103954,2410.8,2410.0,14.5717426]
[1747603279186,4.14865526,2410.5,2410.0,10.42249201]
[1747603279816,4.14853279,2410.5,2410.0,10.42249201]
[1747603279985,4.14841151,2410.6,2410.0,14.57186718]
[1747603280186,4.14841151,2410.6,2410.1,1.87118672]
[1747603280517,6.06,2411.2,2410.5,4.14837347]
[1747603280812,12.79818533,2411.3,2410.6,12.79932383]
[1747603281019,4.14698163,2411.4,2410.8,4.14785043]
[1747603281317,4.14698163,2411.4,2410.9,4.14777495]
[1747603281822,8.648,2411.5,2411.0,4.14759309]
[1747603281986,8.648,2411.5,2411.1,8.651]
[1747603282326,4.1464527,2411.7,2411.1,12.79846695]
[1747603283521,4.1466249,2411.6,2411.1,12.79846695]
[1747603283697,4.1466249,2411.6,2411.1,14.54809536]
[1747603284328,6.06,2411.8,2411.3,0.55]
[1747603284619,6.06,2411.8,2411.4,4.14696523]
[1747603284792,6.06,2411.8,2411.3,4.69704615]
[1747603285002,6.06,2411.8,2411.3,8.48976005]
[1747603285003,10.20628408,2411.8,2411.3,8.48976005]
[1747603285187,10.20629331,2411.8,2411.3,8.48976005]
[1747603285384,6.06,2411.8,2411.2,0.7751]
[1747603285714,4.14680845,2411.5,2411.2,0.7751]
[1747603285919,4.14662426,2411.7,2411.3,8.651]
[1747603286090,4.14696856,2411.4,2411.3,8.651]
[1747603286886,10.20696856,2411.4,2411.3,8.651]
[1747603289417,14.666,2411.4,2411.1,17.907]
[1747603289621,4.14731254,2411.2,2411.1,26.558]
[1747603289925,4.14725388,2411.3,2411.1,26.558]
[1747603290302,18.81298704,2411.4,2411.1,26.558]
[1747603290502,4.14731254,2411.2,2411.1,26.558]
[1747603295694,10.20731254,2411.2,2411.1,26.558]
[1747603296623,23.84007124,2411.2,2411.1,8.651]
[1747603297015,4.14824482,2410.7,2410.4,17.908]
[1747603297194,4.14837771,2410.6,2410.5,8.606]
[1747603297395,10.20837771,2410.6,2410.5,8.606]
[1747603298131,18.20837771,2410.6,2410.5,8.606]
[1747603298300,10.20837771,2410.6,2410.5,8.606]
[1747603299035,18.81537771,2410.6,2410.5,8.606]
[1747603299234,4.1485169,2410.5,2410.4,26.515]
[1747603300144,4.1485169,2410.5,2409.9,4.14]
[1747603300352,4.14894907,2410.3,2410.1,8.607]
[1747603301143,4.14894907,2410.3,2410.2,0.31112842]
[1747603302517,10.20894907,2410.3,2410.2,0.31112842]
[1747603303172,4.14903327,2410.2,2410.1,8.607]
[1747603303852,4.14903327,2410.2,2410.1,8.91879276]
[1747603304951,4.90893327,2410.2,2410.1,0.31179276]
[1747603305529,10.96893327,2410.2,2410.1,0.31179276]
[1747603305768,6.06,2410.2,2410.1,7.11477746]
[1747603306061,4.8661587,2411.4,2410.7,0.55]
[1747603306225,4.14725449,2411.3,2410.8,12.75695152]
[1747603306826,9.01316303,2411.4,2410.8,8.609]
[1747603307063,4.14733935,2411.2,2410.9,0.31179276]
[1747603307660,4.14750765,2411.1,2410.9,0.31179276]
[1747603307959,4.14740222,2411.2,2410.9,0.31179276]
[1747603308151,4.14740222,2411.2,2411.0,0.31179276]
[1747603309364,4.14740222,2411.2,2411.1,0.31179276]
[1747603311484,4.14766625,2411.0,2410.8,8.609]
[1747603311684,4.14757794,2411.1,2410.8,8.609]
[1747603312361,10.20740425,2411.2,2410.8,8.609]
[1747603312682,4.14748771,2411.1,2410.9,0.31091761]
[1747603312979,4.14748455,2411.1,2410.9,0.31091761]
[1747603313272,4.14748455,2411.1,2411.0,0.31091761]
[1747603313781,10.20744806,2411.2,2411.0,0.31091761]
[1747603314579,10.20744806,2411.2,2410.9,0.31091761]
[1747603314882,4.14752406,2411.1,2410.9,0.31091761]
[1747603316783,4.14756307,2411.1,2410.9,0.31091761]
[1747603317450,10.20742578,2411.2,2410.9,0.31091761]
[1747603317788,6.06,2411.4,2411.0,1.3204]
[1747603318100,6.06,2411.6,2411.4,0.55]
[1747603318254,6.06,2411.8,2411.5,8.607]
[1747603318799,6.06,2411.8,2411.6,0.55]
[1747603319095,6.06,2411.8,2411.7,4.9456527]
[1747603319382,6.06,2412.1,2411.8,0.55]
[1747603319686,15.01834676,2412.5,2411.9,0.31021185]
[1747603319687,4.14545401,2412.3,2411.9,0.31021185]
[1747603319895,14.25514676,2412.5,2411.9,0.31021185]
[1747603319896,8.0,2412.5,2412.0,8.607]
[1747603320057,6.06,2412.6,2412.2,4.14558981]
[1747603320253,6.06,2412.7,2412.2,4.14559323]
[1747603320584,6.06,2412.8,2412.4,0.55]
[1747603320764,6.06,2412.8,2412.5,26.515]
[1747603321454,6.06,2412.8,2412.5,30.66007435]
[1747603321765,6.06,2412.8,2412.6,1.45998316]
[1747603321963,6.06,2413.3,2413.1,4.14390747]
[1747603322178,4.14336154,2413.5,2413.2,8.603]
[1747603322361,6.06,2413.6,2413.3,8.601]
[1747603322567,10.20330706,2413.6,2413.3,8.601]
[1747603322752,6.06,2413.6,2413.3,8.601]
[1747603322959,6.06,2413.6,2413.3,6.601]
[1747603323371,10.20322631,2413.6,2413.4,17.905]
[1747603323801,6.06,2413.6,2413.4,17.905]
[1747603324104,6.06,2413.7,2413.4,17.905]
[1747603324397,6.06,2414.1,2413.5,0.55]
[1747603324559,4.14248765,2414.1,2413.5,0.55]
[1747603324754,4.14247818,2414.1,2413.5,4.69331991]
[1747603324959,4.14247818,2414.1,2413.7,0.55]
[1747603325198,5.17667467,2414.4,2413.8,8.601]
[1747603325402,4.14259317,2414.0,2413.8,8.601]
[1747603325700,4.14197484,2414.4,2413.9,0.55]
[1747603325860,4.8661587,2414.5,2413.9,0.55]
[1747603326061,4.1423322,2414.1,2413.9,0.55]
[1747603326266,4.14232143,2414.2,2413.9,0.55]
[1747603326500,4.14198732,2414.3,2413.9,0.55]
[1747603326788,4.14215889,2414.2,2413.9,0.55]
[1747603326961,4.14233173,2414.1,2413.9,0.55]
[1747603327294,4.14229147,2414.2,2413.9,0.55]
[1747603327501,4.14202718,2414.3,2413.9,0.55]
[1747603328060,4.14150229,2414.6,2413.9,4.69262922]
[1747603328389,4.8661587,2414.8,2414.1,0.55]
[1747603328597,4.14169357,2414.5,2414.1,0.55]
[1747603328898,4.14193901,2414.4,2414.1,0.55]
[1747603329101,4.8661587,2414.8,2414.1,0.55]
[1747603329279,5.6269587,2415.1,2414.1,4.69232563]
[1747603329484,14.2219587,2415.1,2414.1,4.69232563]
[1747603329682,4.14140693,2414.7,2414.3,0.55]
[1747603329887,4.14147755,2414.6,2414.4,26.493]
[1747603330299,4.14136214,2414.7,2414.4,26.493]
[1747603330806,4.14154279,2414.6,2414.4,26.493]
[1747603330980,4.14139219,2414.7,2414.4,26.493]
[1747603331184,4.14120005,2414.8,2414.4,26.493]
[1747603331379,4.14161273,2414.6,2414.4,26.493]
[1747603331597,12.14116706,2414.8,2414.4,26.493]
[1747603331813,4.14130119,2414.7,2414.4,26.493]
[1747603331997,4.1415989,2414.6,2414.4,17.896]
[1747603332331,4.14164423,2414.5,2414.4,17.896]
[1747603332518,4.14164423,2414.5,2414.4,26.491]
[1747603333880,4.14154218,2414.6,2414.4,26.491]
[1747603334281,12.14118102,2414.8,2414.4,26.491]
[1747603334481,4.14138952,2414.7,2414.4,26.491]
[1747603335983,4.14118204,2414.8,2414.4,26.491]
[1747603338017,0.7941,2415.4,2414.5,4.14164079]
[1747603338325,0.7941,2416.2,2414.9,4.9491302]
[1747603338535,9.00537233,2416.0,2415.0,8.593]
[1747603338690,4.13942705,2415.8,2415.0,8.593]
[1747603339031,4.14020552,2415.4,2415.0,8.593]
[1747603339338,4.14003004,2415.5,2415.0,12.73370798]
[1747603339623,4.8661587,2416.0,2415.1,0.7537]
[1747603339823,4.13989603,2415.6,2415.1,4.89429178]
[1747603340025,4.13989603,2415.6,2415.1,0.7537]
[1747603340188,4.13993653,2415.5,2415.1,0.7537]
[1747603340391,4.13976584,2415.6,2415.2,4.14]
[1747603340588,4.13976584,2415.6,2415.3,17.888]
[1747603340890,4.14002214,2415.5,2415.3,17.888]
[1747603341208,4.13984609,2415.6,2415.3,17.888]
[1747603341407,4.13904192,2416.1,2415.3,17.888]
[1747603341408,1.10341771,2416.2,2415.3,20.16617]
[1747603341632,4.13986503,2415.6,2415.3,20.16617]
[1747603341935,4.13966122,2415.7,2415.4,0.7537]
[1747603342218,4.13966122,2415.7,2415.5,8.591]
[1747603342616,4.13975823,2415.6,2415.5,8.091]
[1747603342927,4.14010101,2415.4,2415.3,17.888]
[1747603343224,4.14010101,2415.4,2415.3,26.478]
[1747603343591,12.95507242,2415.3,2415.2,4.14]
[1747603344018,12.14027242,2415.3,2415.2,4.14]
[1747603344419,12.94297242,2415.3,2415.2,4.14]
[1747603344831,8.0,2415.3,2415.2,4.14]
[1747603345004,12.14027242,2415.3,2415.2,4.14]
[1747603345201,17.80913112,2415.3,2415.2,4.14]
[1747603345698,4.14027242,2415.3,2415.2,4.14]
[1747603346519,9.00643112,2415.3,2415.2,4.14]
[1747603347900,9.80913112,2415.3,2415.2,4.14]
[1747603351903,17.80913112,2415.3,2415.2,4.14]
[1747603352435,4.14061529,2415.1,2414.6,8.59]
[1747603352626,4.14130119,2414.7,2414.6,8.59]
[1747603353645,4.14130119,2414.7,2414.6,8.89970654]
[1747603354704,4.14130119,2414.7,2414.6,9.28510871]
[1747603356608,6.06130119,2414.7,2414.6,9.28510871]
[1747603356939,14.06130119,2414.7,2414.6,9.28510871]
[1747603358843,14.06130119,2414.7,2414.6,8.89970654]
[1747603359052,14.06130119,2414.7,2414.6,0.30970654]
[1747603359650,22.64630119,2414.7,2414.6,0.30970654]
[1747603359847,4.14181577,2414.4,2414.3,26.468]
[1747603360011,6.06181577,2414.4,2414.3,26.468]
[1747603361050,6.06181577,2414.4,2414.3,26.77801052]
[1747603361410,1.92,2414.4,2414.3,27.54521052]
[1747603361616,1.92,2414.4,2414.3,30.27056145]
[1747603361844,1.92,2414.4,2414.3,30.65650417]
[1747603362925,1.92,2414.4,2414.3,27.93115324]
[1747603363658,6.06181577,2414.4,2414.3,27.93115324]
[1747603364127,1.92,2414.4,2414.3,27.93081454]
[1747603365045,6.06181577,2414.4,2414.3,19.03514272]
[1747603365216,6.06181577,2414.4,2414.3,27.93178038]
[1747603365629,4.14181577,2414.4,2414.3,19.34478038]
[1747603365845,1.92,2414.5,2414.3,27.16458038]
[1747603366033,4.14181577,2414.4,2414.3,27.16458038]
[1747603366755,4.14181577,2414.4,2414.3,27.16454865]
[1747603367447,6.06173145,2414.5,2414.3,27.16454865]
[1747603367652,4.14181577,2414.4,2414.3,27.16454865]
[1747603368151,1.92,2414.5,2414.3,27.16454865]
[1747603368610,4.14181577,2414.4,2414.3,27.16454865]
[1747603368811,6.06173027,2414.5,2414.3,27.16454865]
[1747603369341,6.06172035,2414.5,2414.3,27.16454865]
[1747603369651,1.92,2414.5,2414.3,27.16454865]
[1747603370151,1.92,2414.5,2414.4,0.30960593]
[1747603370329,1.92,2414.5,2414.4,0.69554865]
[1747603371455,1.92,2414.5,2414.4,9.1412211]
[1747603371611,6.0608615,2415.0,2414.5,4.14157181]
[1747603371819,4.1409647,2414.9,2414.4,5.59629063]
[1747603372018,6.060871,2415.0,2414.5,4.14163094]
[1747603373257,6.060871,2415.0,2414.6,0.30960593]
[1747603373664,6.060871,2415.0,2414.7,0.38594272]
[1747603373963,6.060871,2415.0,2414.8,8.586]
[1747603375569,4.14095821,2414.9,2414.8,8.586]
[1747603376367,1.92,2415.0,2414.8,8.586]
[1747603376539,1.92,2415.3,2414.9,0.7835]
[1747603376884,6.06034063,2415.3,2414.9,0.7835]
[1747603377886,6.01034063,2415.3,2414.9,0.7835]
[1747603378067,4.1404755,2415.2,2414.9,0.7835]
[1747603378269,6.01036077,2415.3,2414.9,0.7835]
[1747603378663,6.01036077,2415.3,2415.0,0.31007088]
[1747603378866,1.87,2415.3,2415.0,0.31007088]
[1747603379262,1.87,2415.3,2415.0,1.777982]
[1747603379766,10.11,2415.6,2415.0,1.777982]
[1747603379767,1.87,2415.9,2415.2,0.759]
[1747603379968,0.31736536,2416.1,2415.8,0.759]
[1747603380163,4.13891057,2416.1,2415.9,8.585]
[1747603380410,4.13907284,2416.0,2415.9,8.585]
[1747603381483,4.8661587,2416.2,2415.6,0.759]
[1747603381708,4.13951506,2415.8,2415.7,8.585]
[1747603383221,4.13931065,2415.9,2415.7,8.585]
[1747603383373,4.13941551,2415.8,2415.7,8.585]
[1747603383574,4.13941551,2415.8,2415.7,8.54359]
[1747603384068,4.13958686,2415.7,2415.6,0.759]
[1747603384276,4.13958686,2415.7,2415.6,9.337]
[1747603384469,4.13958686,2415.7,2415.6,0.759]
[1747603384665,4.13924417,2415.9,2415.3,18.6596]
[1747603384918,17.00557421,2415.8,2415.4,8.578]
[1747603385071,4.14010101,2415.4,2415.3,17.882]
[1747603385271,6.01010101,2415.4,2415.3,26.459]
[1747603385601,14.77980101,2415.4,2415.3,26.459]
[1747603391713,14.01010101,2415.4,2415.3,26.459]